[Event "SS Manhem Chess Week 2019 Goteborg Open"]
[Site "Molnlycke kulturhus, Biblioteksgatan 2, Molnlycke, Sweden"]
[Date "2019.08.16"]
[Round "4.15"]
[White "Pham, Bich Ngoc"]
[Black "Mitra, Akash"]
[Result "1-0"]
[TimeControl "15 minutes + 5 seconds per move from move one (Round 1 - 4) / 90 minutes + 30 seconds per move from move one (Round 5 - 8)"]
[WhiteTitle "WIM"]
[WhiteFideId "12401285"]
[BlackFideId "1726714"]
[WhiteElo "2176"]
[BlackElo "1937"]

1. f4 {[%clk 00:14:19]} {[%emt 00:00:51]} e5 {[%clk 00:14:35]} {[%emt
00:00:36]} 2. fxe5 {[%emt 00:00:24]} d6 3. exd6 {[%clk 00:13:51]} {[%emt
00:00:13]} Bxd6 {[%clk 00:14:43]} {[%emt 00:00:01]} 4. Nf3 {[%clk 00:13:53]}
{[%emt 00:00:02]} Bg4 {[%clk 00:14:28]} {[%emt 00:00:21]} 5. g3 {[%clk
00:13:49]} {[%emt 00:00:09]} h5 {[%clk 00:14:28]} {[%emt 00:00:05]} 6. c3
{[%clk 00:11:32]} {[%emt 00:02:22]} Nf6 {[%clk 00:14:07]} {[%emt 00:00:25]} 7.
d4 {[%clk 00:11:22]} {[%emt 00:00:15]} Ne4 {[%clk 00:12:30]} {[%emt 00:01:42]}
8. Qd3 {[%clk 00:10:52]} {[%emt 00:00:35]} Qe7 {[%clk 00:11:50]} {[%emt
00:00:46]} 9. Nbd2 {[%clk 00:10:28]} {[%emt 00:00:28]} f5 {[%clk 00:11:22]}
{[%emt 00:00:34]} 10. Nc4 {[%clk 00:10:02]} {[%emt 00:00:31]} Nd7 {[%clk
00:09:31]} {[%emt 00:01:56]} 11. Nxd6+ {[%clk 00:10:00]} {[%emt 00:00:07]} Qxd6
{[%clk 00:09:21]} {[%emt 00:00:14]} 12. Bf4 {[%clk 00:09:47]} {[%emt 00:00:17]}
Qb6 {[%clk 00:08:51]} {[%emt 00:00:35]} 13. Qc2 {[%clk 00:09:33]} {[%emt
00:00:20]} Rg8 {[%clk 00:08:03]} {[%emt 00:00:54]} 14. h3 {[%clk 00:08:18]}
{[%emt 00:01:20]} g5 {[%clk 00:07:23]} {[%emt 00:00:45]} 15. Nxg5 {[%clk
00:08:07]} {[%emt 00:00:16]} Nxg5 {[%clk 00:06:14]} {[%emt 00:01:15]} 16. hxg4
{[%clk 00:08:04]} {[%emt 00:00:07]} fxg4 {[%clk 00:05:59]} {[%emt 00:00:21]} 17.
Rxh5 {[%clk 00:08:01]} {[%emt 00:00:08]} Nf7 {[%clk 00:05:13]} {[%emt
00:00:51]} 18. Qe4+ {[%clk 00:07:50]} {[%emt 00:00:15]} Kd8 {[%clk 00:05:05]}
{[%emt 00:00:14]} 19. Qd5 {[%clk 00:07:04]} {[%emt 00:00:50]} Qxb2 {[%clk
00:04:49]} {[%emt 00:00:21]} 20. Rc1 {[%clk 00:06:11]} {[%emt 00:00:57]} Rf8
{[%clk 00:03:15]} {[%emt 00:01:40]} 21. Rf5 {[%clk 00:05:54]} {[%emt 00:00:21]}
Ke7 {[%clk 00:03:12]} {[%emt 00:00:09]} 22. Qe4+ {[%clk 00:05:15]} {[%emt
00:00:43]} Kd8 {[%clk 00:03:17]} {[%emt 00:00:01]} 23. Qe6 {[%clk 00:05:00]}
{[%emt 00:00:20]} Nd6 {[%clk 00:02:44]} {[%emt 00:00:38]} 24. Bg5+ {[%clk
00:04:49]} {[%emt 00:00:15]} Nf6 {[%clk 00:02:35]} {[%emt 00:00:15]} 25. Bxf6+
{[%clk 00:04:31]} {[%emt 00:00:23]} Rxf6 {[%clk 00:02:33]} {[%emt 00:00:08]} 26.
Qxf6+ {[%clk 00:04:34]} {[%emt 00:00:01]} Kd7 {[%clk 00:02:37]} {[%emt
00:00:01]} 27. Qg7+ {[%clk 00:04:31]} {[%emt 00:00:06]} Kc6 {[%clk 00:02:41]}
{[%emt 00:00:02]} 28. Rc5+ {[%clk 00:04:33]} {[%emt 00:00:03]} Kb6 {[%clk
00:02:45]} {[%emt 00:00:02]} 29. Qxc7+ {[%emt 00:00:02]} Ka6 {[%emt 00:00:01]}
30. Qxd6+ {[%clk 00:04:34]} {[%emt 00:00:06]} b6 {[%clk 00:02:54]} {[%emt
00:00:01]} 31. e3+ {[%clk 00:04:34]} {[%emt 00:00:04]} 1-0

[Event "SS Manhem Chess Week 2019 Goteborg Open"]
[Site "Molnlycke kulturhus, Biblioteksgatan 2, Molnlycke, Sweden"]
[Date "2019.08.16"]
[Round "4.16"]
[White "Troberg Eskola, Love"]
[Black "Tenold, Andreas"]
[Result "1-0"]
[TimeControl "15 minutes + 5 seconds per move from move one (Round 1 - 4) / 90 minutes + 30 seconds per move from move one (Round 5 - 8)"]
[WhiteFideId "1724185"]
[BlackFideId "1525840"]
[WhiteElo "2134"]
[BlackElo "1795"]

1. d4 {[%clk 00:15:08]} {[%emt 00:00:01]} Nf6 {[%clk 00:15:09]} {[%emt
00:00:01]} 2. Nc3 {[%clk 00:15:12]} {[%emt 00:00:01]} d5 {[%clk 00:15:06]}
{[%emt 00:00:08]} 3. Bf4 {[%clk 00:15:16]} {[%emt 00:00:02]} Bf5 {[%clk
00:14:45]} {[%emt 00:00:25]} 4. f3 {[%clk 00:15:14]} {[%emt 00:00:07]} e6
{[%clk 00:14:32]} {[%emt 00:00:17]} 5. g4 {[%clk 00:15:02]} {[%emt 00:00:17]}
Bg6 {[%clk 00:14:28]} {[%emt 00:00:09]} 6. h4 {[%clk 00:14:59]} {[%emt
00:00:08]} h6 {[%clk 00:13:38]} {[%emt 00:00:55]} 7. Nb5 {[%clk 00:14:40]}
{[%emt 00:00:24]} Na6 {[%clk 00:13:26]} {[%emt 00:00:16]} 8. e3 {[%clk
00:14:29]} {[%emt 00:00:17]} c6 {[%clk 00:13:23]} {[%emt 00:00:08]} 9. Nc3
{[%clk 00:14:29]} {[%emt 00:00:04]} Bd6 {[%clk 00:13:26]} {[%emt 00:00:02]} 10.
Bxa6 {[%clk 00:14:15]} {[%emt 00:00:21]} bxa6 {[%clk 00:12:35]} {[%emt
00:00:56]} 11. Nge2 {[%clk 00:14:07]} {[%emt 00:00:13]} c5 {[%clk 00:11:36]}
{[%emt 00:01:04]} 12. Na4 {[%clk 00:13:21]} {[%emt 00:00:51]} cxd4 {[%clk
00:11:24]} {[%emt 00:00:17]} 13. exd4 {[%clk 00:13:18]} {[%emt 00:00:07]} Bxf4
{[%clk 00:10:07]} {[%emt 00:01:22]} 14. Nxf4 {[%clk 00:13:19]} {[%emt
00:00:04]} Qc7 {[%clk 00:09:22]} {[%emt 00:00:51]} 15. Nxg6 {[%clk 00:13:05]}
{[%emt 00:00:19]} Qg3+ {[%clk 00:09:25]} {[%emt 00:00:02]} 16. Kd2 {[%clk
00:12:39]} {[%emt 00:00:32]} fxg6 {[%clk 00:09:27]} {[%emt 00:00:02]} 17. Qe2
{[%clk 00:12:24]} {[%emt 00:00:20]} Kf7 {[%clk 00:09:04]} {[%emt 00:00:28]} 18.
Rae1 {[%emt 00:00:46]} Rhe8 {[%clk 00:08:34]} 19. Nc5 {[%clk 00:11:48]} {[%emt
00:00:36]} Qd6 {[%clk 00:08:02]} {[%emt 00:00:37]} 20. Nd3 {[%clk 00:11:20]}
{[%emt 00:00:33]} Kg8 {[%clk 00:07:25]} {[%emt 00:00:42]} 21. Kc1 {[%clk
00:11:06]} {[%emt 00:00:19]} Rac8 {[%clk 00:06:54]} {[%emt 00:00:36]} 22. c3
{[%clk 00:10:38]} {[%emt 00:00:33]} a5 {[%clk 00:06:23]} {[%emt 00:00:36]} 23.
Kb1 {[%clk 00:10:10]} {[%emt 00:00:33]} Nd7 {[%clk 00:04:15]} {[%emt 00:02:13]}
24. h5 {[%clk 00:09:20]} {[%emt 00:00:55]} g5 {[%clk 00:03:53]} {[%emt
00:00:26]} 25. Rhf1 {[%clk 00:09:13]} {[%emt 00:00:13]} a4 {[%clk 00:02:27]}
{[%emt 00:01:31]} 26. a3 {[%clk 00:09:09]} {[%emt 00:00:08]} Rb8 {[%clk
00:02:03]} {[%emt 00:00:29]} 27. Ka1 {[%clk 00:08:59]} {[%emt 00:00:16]} Nb6
{[%clk 00:01:22]} {[%emt 00:00:45]} 28. Ne5 {[%clk 00:07:17]} {[%emt 00:01:46]}
Nd7 {[%clk 00:00:54]} {[%emt 00:00:34]} 29. Nd3 {[%clk 00:07:11]} {[%emt
00:00:10]} Nb6 {[%clk 00:00:54]} {[%emt 00:00:06]} 30. Rc1 {[%clk 00:05:55]}
{[%emt 00:01:21]} Nc4 {[%clk 00:00:49]} {[%emt 00:00:10]} 31. Rfe1 {[%clk
00:04:05]} {[%emt 00:01:55]} Rb3 {[%clk 00:00:26]} {[%emt 00:00:28]} 32. Rc2
{[%clk 00:02:32]} {[%emt 00:01:39]} Kh8 {[%clk 00:00:15]} {[%emt 00:00:16]} 33.
Nc5 {[%clk 00:02:31]} {[%emt 00:00:06]} Rb6 {[%clk 00:00:13]} {[%emt 00:00:07]}
34. Nxa4 {[%clk 00:02:20]} {[%emt 00:00:16]} Ra6 {[%clk 00:00:09]} {[%emt
00:00:09]} 35. Nc5 {[%emt 00:00:04]} Rb6 36. Qd3 {[%clk 00:00:54]} {[%emt
00:01:32]} Na5 {[%emt 00:00:10]} 37. b4 {[%clk 00:00:54]} {[%emt 00:00:01]} Nc4
{[%clk 00:00:13]} {[%emt 00:00:04]} 38. a4 {[%clk 00:00:53]} {[%emt 00:00:06]}
a5 {[%clk 00:00:08]} {[%emt 00:00:09]} 39. b5 {[%clk 00:00:55]} {[%emt
00:00:03]} Qe7 {[%clk 00:00:07]} {[%emt 00:00:06]} 40. Rce2 {[%clk 00:00:57]}
{[%emt 00:00:02]} Rd6 {[%clk 00:00:06]} {[%emt 00:00:06]} 41. Ka2 {[%clk
00:00:35]} {[%emt 00:00:27]} Nb6 {[%clk 00:00:09]} {[%emt 00:00:01]} 42. Kb3
{[%clk 00:00:38]} {[%emt 00:00:03]} Nd7 {[%clk 00:00:13]} {[%emt 00:00:01]} 43.
Nxe6 {[%clk 00:00:29]} {[%emt 00:00:14]} Rxe6 {[%clk 00:00:08]} {[%emt
00:00:10]} 44. Rxe6 {[%clk 00:00:32]} {[%emt 00:00:02]} Qxe6 {[%clk 00:00:10]}
{[%emt 00:00:03]} 45. Rxe6 {[%clk 00:00:36]} {[%emt 00:00:01]} Rxe6 {[%clk
00:00:14]} 46. Qf5 {[%clk 00:00:36]} {[%emt 00:00:04]} Rd6 {[%clk 00:00:17]}
{[%emt 00:00:02]} 47. Kc2 {[%clk 00:00:36]} {[%emt 00:00:05]} Nf6 {[%clk
00:00:17]} {[%emt 00:00:06]} 48. Qc8+ {[%clk 00:00:38]} {[%emt 00:00:02]} Kh7
{[%clk 00:00:21]} {[%emt 00:00:01]} 49. Qc7 {[%clk 00:00:40]} {[%emt 00:00:03]}
Re6 {[%clk 00:00:22]} {[%emt 00:00:04]} 50. Qxa5 {[%clk 00:00:43]} {[%emt
00:00:03]} Re3 {[%clk 00:00:23]} {[%emt 00:00:04]} 51. b6 {[%clk 00:00:45]}
{[%emt 00:00:02]} 1-0

[Event "SS Manhem Chess Week 2019 Goteborg Open"]
[Site "Molnlycke kulturhus, Biblioteksgatan 2, Molnlycke, Sweden"]
[Date "2019.08.16"]
[Round "4.17"]
[White "Malmstig, Erik"]
[Black "Kvarby, Anders"]
[Result "1-0"]
[TimeControl "15 minutes + 5 seconds per move from move one (Round 1 - 4) / 90 minutes + 30 seconds per move from move one (Round 5 - 8)"]
[WhiteTitle "FM"]
[WhiteFideId "1702866"]
[BlackFideId "1746596"]
[WhiteElo "2335"]
[BlackElo "1864"]

1. d4 {[%clk 00:14:47]} {[%emt 00:00:23]} d5 {[%clk 00:15:07]} {[%emt
00:00:03]} 2. c4 {[%clk 00:14:51]} {[%emt 00:00:01]} e6 {[%clk 00:15:10]}
{[%emt 00:00:02]} 3. Nc3 {[%clk 00:14:52]} {[%emt 00:00:04]} f5 {[%clk
00:15:12]} {[%emt 00:00:02]} 4. Bf4 {[%clk 00:14:40]} {[%emt 00:00:18]} Nf6
{[%clk 00:15:06]} {[%emt 00:00:11]} 5. e3 {[%clk 00:14:42]} {[%emt 00:00:03]}
Bd6 {[%clk 00:15:08]} {[%emt 00:00:03]} 6. Nh3 {[%clk 00:14:44]} {[%emt
00:00:03]} O-O {[%clk 00:14:44]} {[%emt 00:00:29]} 7. c5 {[%clk 00:14:31]}
{[%emt 00:00:19]} Be7 {[%clk 00:14:47]} {[%emt 00:00:02]} 8. f3 {[%clk
00:14:24]} {[%emt 00:00:12]} c6 {[%clk 00:13:54]} {[%emt 00:00:58]} 9. b4
{[%clk 00:14:22]} {[%emt 00:00:06]} Nh5 {[%clk 00:13:49]} {[%emt 00:00:09]} 10.
Be5 {[%clk 00:14:25]} {[%emt 00:00:03]} Nd7 {[%clk 00:13:39]} {[%emt 00:00:15]}
11. f4 {[%clk 00:14:25]} {[%emt 00:00:05]} Nhf6 {[%clk 00:13:33]} {[%emt
00:00:11]} 12. Be2 {[%clk 00:14:18]} {[%emt 00:00:12]} Ne4 {[%clk 00:12:22]}
{[%emt 00:01:16]} 13. Rc1 {[%clk 00:13:53]} {[%emt 00:00:29]} b5 {[%clk
00:10:57]} {[%emt 00:01:31]} 14. Nxe4 {[%clk 00:13:21]} {[%emt 00:00:38]} fxe4
{[%clk 00:10:56]} {[%emt 00:00:06]} 15. O-O {[%clk 00:13:19]} {[%emt 00:00:06]}
a5 {[%clk 00:09:40]} {[%emt 00:01:22]} 16. a3 {[%clk 00:13:23]} {[%emt
00:00:01]} Nf6 {[%clk 00:08:44]} {[%emt 00:01:01]} 17. Kh1 {[%clk 00:13:21]}
{[%emt 00:00:07]} Bd7 {[%clk 00:08:40]} {[%emt 00:00:10]} 18. g4 {[%clk
00:13:10]} {[%emt 00:00:16]} Be8 {[%clk 00:08:25]} {[%emt 00:00:19]} 19. Qd2
{[%clk 00:13:07]} {[%emt 00:00:08]} Nd7 {[%clk 00:08:05]} {[%emt 00:00:25]} 20.
Ra1 {[%clk 00:13:04]} {[%emt 00:00:08]} a4 {[%clk 00:08:09]} {[%emt 00:00:02]}
21. Rg1 {[%clk 00:12:59]} {[%emt 00:00:09]} Bg6 {[%clk 00:07:40]} {[%emt
00:00:34]} 22. Raf1 {[%clk 00:12:53]} {[%emt 00:00:11]} Nxe5 {[%clk 00:07:32]}
{[%emt 00:00:13]} 23. dxe5 {[%clk 00:12:48]} {[%emt 00:00:10]} h6 {[%clk
00:06:50]} {[%emt 00:00:48]} 24. Qd4 {[%clk 00:12:49]} {[%emt 00:00:03]} Bh4
{[%clk 00:06:41]} {[%emt 00:00:14]} 25. Rg2 {[%clk 00:12:36]} {[%emt 00:00:18]}
Bh7 {[%clk 00:06:35]} {[%emt 00:00:11]} 26. Bd1 {[%clk 00:11:51]} {[%emt
00:00:51]} Qe7 {[%clk 00:06:38]} {[%emt 00:00:02]} 27. Ng1 {[%clk 00:11:54]}
{[%emt 00:00:02]} g5 {[%clk 00:06:22]} {[%emt 00:00:21]} 28. Ne2 {[%clk
00:11:42]} {[%emt 00:00:17]} Rf7 {[%clk 00:06:03]} {[%emt 00:00:24]} 29. Qd2
{[%clk 00:11:24]} {[%emt 00:00:23]} Raf8 {[%clk 00:05:59]} {[%emt 00:00:09]} 30.
Nd4 {[%clk 00:11:25]} {[%emt 00:00:05]} Qe8 {[%clk 00:05:50]} {[%emt 00:00:13]}
31. Bc2 {[%clk 00:11:10]} {[%emt 00:00:20]} Kh8 {[%clk 00:05:21]} {[%emt
00:00:35]} 32. Kg1 {[%clk 00:11:06]} {[%emt 00:00:09]} gxf4 {[%clk 00:05:19]}
{[%emt 00:00:07]} 33. exf4 {[%clk 00:11:09]} {[%emt 00:00:02]} e3 {[%clk
00:05:18]} {[%emt 00:00:06]} 34. Qxe3 {[%clk 00:11:04]} {[%emt 00:00:09]} Bxc2
{[%clk 00:05:18]} {[%emt 00:00:06]} 35. Nxc2 {[%clk 00:10:33]} {[%emt
00:00:36]} Bg5 {[%clk 00:05:18]} {[%emt 00:00:05]} 36. Rgf2 {[%clk 00:10:10]}
{[%emt 00:00:27]} Bh4 {[%clk 00:05:12]} {[%emt 00:00:11]} 37. Rf3 {[%clk
00:10:11]} {[%emt 00:00:04]} Rg7 {[%clk 00:05:00]} {[%emt 00:00:18]} 38. h3
{[%clk 00:10:14]} Rfg8 {[%clk 00:03:50]} {[%emt 00:01:15]} 39. Kh2 {[%clk
00:10:03]} {[%emt 00:00:16]} Rxg4 {[%clk 00:02:46]} {[%emt 00:01:09]} 40. hxg4
{[%clk 00:10:00]} {[%emt 00:00:08]} Qg6 {[%clk 00:02:39]} {[%emt 00:00:13]} 41.
f5 {[%clk 00:09:50]} {[%emt 00:00:15]} 1-0

[Event "SS Manhem Chess Week 2019 Goteborg Open"]
[Site "Molnlycke kulturhus, Biblioteksgatan 2, Molnlycke, Sweden"]
[Date "2019.08.16"]
[Round "4.18"]
[White "Carlfors, Viktor"]
[Black "Axelsson, Henrik"]
[Result "1-0"]
[TimeControl "15 minutes + 5 seconds per move from move one (Round 1 - 4) / 90 minutes + 30 seconds per move from move one (Round 5 - 8)"]
[WhiteFideId "1740725"]
[BlackFideId "1703382"]
[WhiteElo "1820"]
[BlackElo "1984"]

1. d4 {[%clk 00:14:57]} {[%emt 00:02:49]} Nf6 {[%clk 00:12:28]} 2. Nf3 {[%clk
00:14:57]} {[%emt 00:00:04]} d5 {[%clk 00:12:29]} {[%emt 00:00:04]} 3. Bf4
{[%clk 00:14:50]} {[%emt 00:00:11]} e6 {[%clk 00:12:31]} {[%emt 00:00:05]} 4.
e3 {[%clk 00:14:54]} {[%emt 00:00:01]} c5 {[%clk 00:12:27]} {[%emt 00:00:08]} 5.
c3 {[%clk 00:14:58]} {[%emt 00:00:01]} Nc6 {[%clk 00:12:21]} {[%emt 00:00:11]}
6. Nbd2 {[%clk 00:14:58]} {[%emt 00:00:04]} Qb6 {[%clk 00:12:00]} {[%emt
00:00:26]} 7. Qb3 {[%clk 00:14:39]} {[%emt 00:00:24]} c4 {[%clk 00:11:42]}
{[%emt 00:00:23]} 8. Qc2 {[%clk 00:14:41]} {[%emt 00:00:03]} a5 {[%clk
00:11:42]} {[%emt 00:00:06]} 9. a4 {[%clk 00:14:33]} {[%emt 00:00:13]} Be7
{[%clk 00:09:53]} {[%emt 00:01:52]} 10. h3 {[%clk 00:14:36]} {[%emt 00:00:03]}
O-O {[%clk 00:09:55]} {[%emt 00:00:03]} 11. Be2 {[%clk 00:14:40]} {[%emt
00:00:01]} h6 {[%clk 00:09:58]} {[%emt 00:00:02]} 12. O-O {[%clk 00:14:40]}
{[%emt 00:00:05]} Ne8 {[%clk 00:09:40]} {[%emt 00:00:22]} 13. e4 {[%clk
00:14:34]} {[%emt 00:00:11]} f5 {[%clk 00:09:27]} {[%emt 00:00:19]} 14. exd5
{[%clk 00:14:16]} {[%emt 00:00:24]} exd5 {[%clk 00:09:29]} {[%emt 00:00:03]} 15.
Ne5 {[%clk 00:14:13]} {[%emt 00:00:07]} g5 {[%clk 00:08:25]} {[%emt 00:01:09]}
16. Bh2 {[%clk 00:14:17]} {[%emt 00:00:02]} Rf6 {[%clk 00:07:56]} {[%emt
00:00:34]} 17. Bf3 {[%clk 00:13:56]} {[%emt 00:00:25]} Be6 {[%clk 00:07:55]}
{[%emt 00:00:06]} 18. Rae1 {[%clk 00:13:37]} {[%emt 00:00:24]} Nxe5 {[%clk
00:07:32]} {[%emt 00:00:28]} 19. Bxe5 {[%clk 00:13:11]} {[%emt 00:00:31]} Rg6
{[%clk 00:07:32]} {[%emt 00:00:03]} 20. Bh5 {[%clk 00:13:15]} {[%emt 00:00:02]}
Rg7 {[%clk 00:07:23]} {[%emt 00:00:14]} 21. Bxg7 {[%clk 00:13:03]} {[%emt
00:00:17]} Nxg7 {[%clk 00:06:58]} {[%emt 00:00:31]} 22. Bf3 {[%clk 00:13:02]}
{[%emt 00:00:06]} Kf7 {[%clk 00:06:54]} {[%emt 00:00:08]} 23. Re5 {[%clk
00:12:09]} {[%emt 00:00:58]} Kf6 {[%clk 00:06:33]} {[%emt 00:00:26]} 24. Bxd5
{[%clk 00:11:40]} {[%emt 00:00:34]} Bxd5 {[%clk 00:06:15]} {[%emt 00:00:22]} 25.
Rxd5 {[%clk 00:11:43]} {[%emt 00:00:02]} Ne6 {[%clk 00:06:00]} {[%emt
00:00:20]} 26. Qxf5+ {[%clk 00:11:36]} {[%emt 00:00:12]} Kg7 {[%clk 00:06:03]}
{[%emt 00:00:02]} 27. Nxc4 {[%clk 00:11:32]} {[%emt 00:00:10]} Qc6 {[%clk
00:06:04]} {[%emt 00:00:04]} 28. Ne5 {[%clk 00:11:33]} {[%emt 00:00:04]} Nd8
{[%clk 00:05:23]} {[%emt 00:00:46]} 29. Rxd8 {[%clk 00:10:56]} 1-0

[Event "SS Manhem Chess Week 2019 Goteborg Open"]
[Site "Molnlycke kulturhus, Biblioteksgatan 2, Molnlycke, Sweden"]
[Date "2019.08.17"]
[Round "5.1"]
[White "Golubka, Petro"]
[Black "Wiedenkeller, Michael"]
[Result "1/2-1/2"]
[TimeControl "15 minutes + 5 seconds per move from move one (Round 1 - 4) / 90 minutes + 30 seconds per move from move one (Round 5 - 8)"]
[WhiteTitle "IM"]
[BlackTitle "IM"]
[WhiteFideId "14114224"]
[BlackFideId "1700146"]
[WhiteElo "2479"]
[BlackElo "2456"]

1. d4 {[%clk 01:29:12]} {[%emt 00:01:47]} Nf6 {[%clk 01:30:32]} {[%emt
00:00:28]} 2. c4 {[%clk 01:29:38]} {[%emt 00:00:04]} e6 {[%clk 01:30:51]}
{[%emt 00:00:10]} 3. Nc3 {[%clk 01:29:03]} {[%emt 00:01:06]} Bb4 {[%clk
01:31:08]} {[%emt 00:00:12]} 4. Bg5 {[%emt 00:03:47]} h6 {[%clk 01:27:50]}
{[%emt 00:00:46]} 5. Bh4 {[%clk 01:27:47]} {[%emt 00:01:30]} c5 {[%clk
01:27:57]} {[%emt 00:00:23]} 6. d5 {[%emt 00:02:43]} exd5 {[%clk 01:25:59]}
{[%emt 00:00:16]} 7. cxd5 {[%clk 01:28:04]} {[%emt 00:00:13]} d6 {[%clk
01:25:18]} {[%emt 00:01:11]} 8. e3 {[%clk 01:27:48]} {[%emt 00:00:46]} Nbd7
{[%emt 00:02:18]} 9. Bd3 {[%emt 00:03:00]} O-O {[%clk 01:06:55]} {[%emt
00:15:30]} 10. Nge2 {[%clk 01:27:05]} {[%emt 00:00:18]} a6 {[%emt 00:01:28]} 11.
O-O {[%clk 01:26:39]} {[%emt 00:00:50]} b5 {[%clk 01:05:48]} {[%emt 00:00:45]}
12. a3 {[%clk 01:20:08]} {[%emt 00:07:02]} Ba5 {[%clk 01:05:28]} {[%emt
00:00:50]} 13. Qb1 {[%clk 01:17:28]} {[%emt 00:03:09]} Bb7 {[%clk 01:00:18]}
{[%emt 00:05:41]} 14. b4 {[%clk 01:15:27]} {[%emt 00:02:31]} Bb6 {[%clk
00:59:59]} {[%emt 00:00:49]} 15. Bf5 {[%clk 01:14:38]} {[%emt 00:01:18]} Qc7
{[%clk 00:57:26]} {[%emt 00:03:03]} 16. Rd1 {[%clk 01:12:58]} {[%emt 00:02:10]}
Rfe8 {[%clk 00:57:14]} {[%emt 00:00:43]} 17. Ra2 {[%emt 00:01:07]} Kh8 {[%clk
00:55:36]} {[%emt 00:02:03]} 18. Rad2 {[%emt 00:06:08]} Ng8 {[%emt 00:01:09]}
19. Rc1 {[%clk 01:05:32]} {[%emt 00:01:54]} Ne5 {[%emt 00:02:23]} 20. Rdd1
{[%clk 01:05:37]} {[%emt 00:00:16]} Ne7 {[%clk 00:51:43]} {[%emt 00:01:53]} 21.
Be4 {[%emt 00:02:07]} Rac8 {[%emt 00:01:16]} 22. Bg3 {[%emt 00:05:44]} Nc4
{[%emt 00:01:20]} 23. Qa2 {[%emt 00:04:49]} Qd7 {[%clk 00:46:42]} {[%emt
00:00:01]} 24. Bd3 {[%emt 00:05:29]} cxb4 {[%emt 00:04:10]} 25. axb4 {[%clk
00:55:59]} {[%emt 00:00:14]} Nf5 {[%clk 00:36:54]} {[%emt 00:04:15]} 26. Bxf5
{[%clk 00:53:12]} {[%emt 00:03:17]} Qxf5 {[%clk 00:37:19]} {[%emt 00:00:05]} 27.
Nd4 {[%emt 00:00:27]} Qd7 {[%clk 00:35:12]} {[%emt 00:02:35]} 28. Bf4 {[%clk
00:45:54]} {[%emt 00:07:52]} Ne5 {[%emt 00:01:05]} 29. Bxe5 {[%emt 00:01:50]}
1/2-1/2